Cogmind - Beta 13 @@@ ROGUE MODE // 2024.04.04 @ 21:53:41 Player: Copyrite Result: Self-destructed Performance ------------- Evolutions (2) 1000 Regions Visited (3) 600 Robots Destroyed (33) 165 Value Destroyed (796) 796 Prototype IDs (6) 120 Alien Tech Used (0) 0 Bonus (0) 0 TOTAL SCORE: 2681 Bonus ------- None Cogmind --------- Core Integrity 430/550 Matter 227/300 Energy 250/250 System Corruption 0% Temperature Cool (48) Movement Flying (37) Location -8/Materials Parts ------- > --- POWER (1) -------- Ion Engine > --- PROPULSION (4) --- Improved Flight Unit Improved Flight Unit > --- UTILITY (4) ------ Small Storage Unit Weight Redist. System Targeting Computer Hacking Suite > --- WEAPON (2) ------- High-powered Shotgun > --- INVENTORY (8) ---- Ion Engine Structural Scanner Trap Scanner ECM Suite Hardlight Generator Peak State ------------ > --- POWER ------------ Ion Engine > --- PROPULSION ------- Improved Flight Unit Improved Flight Unit > --- UTILITY ---------- Small Storage Unit Weight Redist. System Hacking Suite > --- WEAPON ----------- High-powered Shotgun High-powered Shotgun > --- INVENTORY -------- Ion Engine Structural Scanner Trap Scanner Targeting Computer ECM Suite Hardlight Generator [Rating: 20] Favorites ----------- Power Light Ion Engine Engine Light Ion Engine Propulsion Aluminum Leg Leg Aluminum Leg Flight Unit Improved Flight Unit Utility Small Storage Unit Device Weight Redist. System Storage Small Storage Unit Processor Targeting Computer Hackware Hacking Suite Protection Light Armor Plating Weapon Grenade Launcher Energy Gun Backup Laser I Ballistic Gun Assault Rifle Ballistic Cannon Improved Light Cannon Launcher Grenade Launcher Special Weapon Mining Laser Build | -11 -10 -9 -8 ------- Run | Yrd Mat Mat Mat Slots Evolved 4 | . . 2 2 Power . | . . . . Propulsion 2 | . . 2 . Utility 2 | . . . 2 Weapon . | . . . . Parts Attached 40 | 5 9 23 3 Power 4 | 1 . 3 . Engine 4 | 1 . 3 . Core . | . . . . Reactor . | . . . . Propulsion 13 | 2 2 9 . Treads . | . . . . Leg 9 | 2 2 5 . Wheel . | . . . . Hover . | . . . . Flight 4 | . . 4 . Utility 13 | 1 5 5 2 Device 3 | . 1 1 1 Storage 5 | 1 2 2 . Processor 1 | . . . 1 Hackware 1 | . . 1 . Protection 3 | . 2 1 . Artifact . | . . . . Weapon 10 | 1 2 6 1 Energy Gun . | . . . . Energy Cannon . | . . . . Ballistic Gun 5 | 1 . 3 1 Ballistic Cannon 2 | . . 2 . Launcher 1 | . 1 . . Special Weapon 2 | . 1 1 . Impact Weapon . | . . . . Slashing Weapon . | . . . . Piercing Weapon . | . . . . Special Melee Weapon . | . . . . Unidentified Prototypes 1 | . . 1 . Parts Lost 3 | . . 1 2 Power . | . . . . Propulsion 1 | . . . 1 Utility . | . . . . Weapon 2 | . . 1 1 Highest Loss Streak 1 | . . 1 1 To Critical Strikes . | . . . . Average Slot Usage (%) 87 | . 98 81 73 Engine 12 | . 14 11 9 Leg 16 | . 27 11 . Flight 11 | . . 19 20 Device 2 | . 1 3 6 Storage 12 | . 14 11 9 Hackware 2 | . . 4 9 Protection 6 | . 12 3 . Ballistic Gun 6 | . 9 2 15 Ballistic Cannon 4 | . . 8 . Launcher 5 | . 13 . . Special Weapon 4 | . 4 5 . Naked Turns . | . . . . Heaviest Build 91 | 10 91 16 16 Greatest Support 40 | 20 20 40 16 Greatest Overweight (x) 4 | . 4 3 1 Average Overweight (x) . | . . . . Largest Inventory Capacity 25 | 8 25 25 8 Average Capacity 8 | 6 8 8 8 Most Carried 8 | 1 8 8 8 Average Carried 6 | . 4 7 6 Final Capacity 8 | 8 8 8 8 Final Carried 8 | 1 8 8 5 Class Distribution -------------------- 92% | Mutant 7% | Scavenger-Mutant Dominant Class ---------------- Mutant | -10/Materials Mutant | -9/Materials Mutant | -8/Materials Resources | -11 -10 -9 -8 ----------- Run | Yrd Mat Mat Mat Matter Collected 1033 | 248 203 547 35 Remotely . | . . . . Salvage Created 863 | . 127 701 35 Parts 61 | . 8 52 1 Haulers Intercepted 2 | . . 2 . Recyclers Shooed 1 | . . 1 . Parts Field Recycled . | . . . . Retrieved Matter . | . . . . Parts Self-Destructed . | . . . . Prevented . | . . . . Kills | -11 -10 -9 -8 ------- Run | Yrd Mat Mat Mat Combat Hostiles Destroyed 20 | . 7 12 1 Guns 5 | . 1 3 1 Cannons 9 | . . 9 . AOE 6 | . 6 . . Classes Destroyed 9 | . 4 5 . Worker 1 | . . 1 . Builder 3 | . 1 2 . Hauler 2 | . . 2 . Recycler 2 | . . 2 . Operator 1 | . . 1 . Watcher 4 | . 1 3 . Swarmer 3 | . 3 . . Grunt 14 | . 4 10 . Sentry 3 | . . 2 1 Best Kill Streak 6 | . 6 5 1 Combat Bots Only 5 | . 5 3 1 Max Kills in Single Turn 3 | . 3 1 1 Gunslinging . | . . . . Exploded 3 | . 3 . . Melee . | . . . . Uniques/NPCs Destroyed . | . . . . Combat | -11 -10 -9 -8 -------- Run | Yrd Mat Mat Mat Hostile Shots Fired 95 | . 25 35 35 Missed 35 | . 6 16 13 Damage Taken 801 | . 248 221 332 Core 189 | . 16 53 120 Absorbed by Shields . | . . . . Regen/Repaired (Parts) 11 | . . 11 . Core Remaining (%) 93 | 100 93 86 . Volleys Fired 124 | . 33 77 14 Largest 2 | . 1 2 2 Hottest 100 | . 100 100 50 Shots Fired 137 | . 33 82 22 Gun 43 | . 9 12 22 Cannon 62 | . . 62 . Launcher 11 | . 11 . . Special 21 | . 13 8 . Kinetic 105 | . 9 74 22 Thermal 21 | . 13 8 . Explosive 11 | . 11 . . Electromagnetic . | . . . . Robot Hit Streak 11 | . 8 11 11 Robot Miss Streak 5 | . 3 3 5 Penetration Max . | . . . . Secondary Targets . | . . . . Shots Hit Robots 71 | . 11 48 12 Core Hits 49 | . 17 26 6 Critical Kills . | . . . . Critical Parts Destroyed 1 | . . . 1 Critical Strikes 4 | . . 3 1 Destroy 1 | . . . 1 Blast 3 | . . 3 . Melee Attacks . | . . . . Impact . | . . . . Slashing . | . . . . Piercing . | . . . . Sneak Attacks . | . . . . Combat Hostiles . | . . . . Follow-up Attacks . | . . . . Damage Inflicted 1990 | . 626 1054 310 Guns 571 | . 82 179 310 Cannons 851 | . . 851 . Explosions 544 | . 544 . . Melee . | . . . . Ramming . | . . . . Kinetic 1422 | . 82 1030 310 Thermal 24 | . . 24 . Explosive 544 | . 544 . . Electromagnetic . | . . . . Impact . | . . . . Slashing . | . . . . Piercing . | . . . . Highest Corruption . | . . . . Average Corruption . | . . . . Corruption Purged . | . . . . Corruption Blocked . | . . . . Overload Shots . | . . . . Overflow Damage 20 | . . 20 . Projectiles 20 | . . 20 . Explosions . | . . . . Melee . | . . . . Knockbacks 3 | . . 3 . Impact . | . . . . Kinetic 3 | . . 3 . Secondary . | . . . . Self-Inflicted Damage 11 | . 11 . . Shots 1 | . 1 . . Rammed . | . . . . Targets Rammed . | . . . . Kicked . | . . . . Crushed . | . . . . Highest Temperature 83 | . 83 63 51 Average Temperature 19 | . 23 13 27 Received Heat Transfer 474 | . 186 108 180 Siege Activations . | . . . . Robots Corrupted . | . . . . Combat Hostiles . | . . . . Parts Fried . | . . . . Impact Corruptions . | . . . . Robots Melted . | . . . . Combat Hostiles . | . . . . Parts Melted . | . . . . Heat Transferred 50 | . . 50 . Parts Sabotaged . | . . . . Parts Stolen . | . . . . Parts Stripped . | . . . . Power Chain Reactions . | . . . . Alert | -11 -10 -9 -8 ------- Run | Yrd Mat Mat Mat Peak Influence 440 | . 252 440 325 Initial 185 | . . 31 185 Average 197 | . 146 246 260 Maximum Alert Level 2 | . 1 2 1 Low Security (%) 48 | 100 58 40 14 Level 1 48 | . 41 51 85 Level 2 3 | . . 7 . Level 3 . | . . . . Level 4 . | . . . . Level 5 . | . . . . High Security . | . . . . Max Security . | . . . . Squads Dispatched 9 | . 2 4 3 Investigation 4 | . . 3 1 Extermination . | . . . . Reinforcement 5 | . 2 1 2 Assault . | . . . . Garrison . | . . . . Intercept . | . . . . Searches Triggered . | . . . . Construction Impeded . | . . . . Haulers Reinforced . | . . . . Active Scanning Responses . | . . . . Cargo Convoy Interrupts . | . . . . Stealth | -11 -10 -9 -8 --------- Run | Yrd Mat Mat Mat Distress Signals 4 | . 1 2 1 Communications Jammed . | . . . . Distress Signals . | . . . . Times Spotted 53 | . 9 29 15 Peak Tracking Total 11 | . 5 6 11 Tactical Retreats 4 | . 1 2 1 Traps | -11 -10 -9 -8 ------- Run | Yrd Mat Mat Mat Traps Triggered 1 | . 1 . . Indirectly . | . . . . Trap Hack Attempts . | . . . . Triggered . | . . . . Disarmed 3 | . 3 . . Reprogrammed . | . . . . Reused . | . . . . Traps Extracted . | . . . . Installed . | . . . . Triggered . | . . . . Machines | -11 -10 -9 -8 ---------- Run | Yrd Mat Mat Mat Machines Disabled 3 | . 2 . 1 Max in Single Turn 1 | . 1 . 1 Machines Repaired . | . . . . Machines Dismantled . | . . . . Machines Sabotaged . | . . . . Overloaded Fab Kills . | . . . . Hacking | -11 -10 -9 -8 --------- Run | Yrd Mat Mat Mat Machines Accessed 13 | . 4 6 3 Terminals 9 | . 3 3 3 Fabricators . | . . . . Repair Stations 1 | . . 1 . Recycling Units 2 | . 1 1 . Scanalyzers 1 | . . 1 . Garrison Access . | . . . . Total Hacks 39 | . 10 20 9 Successful 26 | . 4 14 8 Failed 13 | . 6 6 1 Catastrophic 2 | . 1 1 . Database Lockouts . | . . . . Manual . | . . . . Terminals 30 | . 9 12 9 Fabricators . | . . . . Repair Stations 4 | . . 4 . Recycling Units 2 | . 1 1 . Scanalyzers 3 | . . 3 . Garrison Access . | . . . . Terminal Hacks 18 | . 3 7 8 Record 4 | . . 3 1 Prototype ID Bank 3 | . 1 1 1 Branch Access Points 1 | . . . 1 Alert Level 3 | . . 2 1 Disarm Traps 1 | . 1 . . Dispatch Records 1 | . . . 1 Recall Reinforcements 1 | . . . 1 Hauler Manifests 2 | . 1 . 1 Registered Components 1 | . . 1 . Zone Layout 1 | . . . 1 Fabricator Hacks . | . . . . Repair Station Hacks 3 | . . 3 . Scan Component 1 | . . 1 . Repair 1 | . . 1 . Refit 1 | . . 1 . Recycling Unit Hacks 2 | . 1 1 . Report Inventory 2 | . 1 1 . Scanalyzer 3 | . . 3 . Insert Component 2 | . . 2 . Analyze 1 | . . 1 . Garrison Access Hacks . | . . . . Unauthorized Hacks . | . . . . Terminals . | . . . . Fabricators . | . . . . Repair Stations . | . . . . Recycling Units . | . . . . Scanalyzers . | . . . . Garrison Access . | . . . . Data Cores Recovered 1 | . . 1 . Used 1 | . . 1 . Hacking Detections 9 | . 4 4 1 Full Trace Events 7 | . 2 4 1 Feedback Events . | . . . . Feedback Blocked . | . . . . Robot Schematics Acquired . | . . . . Robots Built . | . . . . Authchips . | . . . . Time . | . . . . Total Robot Build Rating . | . . . . Part Schematics Acquired 1 | . . 1 . Parts Built . | . . . . Authchips . | . . . . Time . | . . . . Total Part Build Rating . | . . . . Parts Repaired 1 | . . 1 . Time 32 | . . 32 . Parts Recycled . | . . . . Recycled Matter . | . . . . Retrieved Matter . | . . . . Retrieved Components . | . . . . Parts Scanalyzed 1 | . . 1 . Part Schematics Acquired 1 | . . 1 . Parts Damaged . | . . . . Bothacking | -11 -10 -9 -8 ------------ Run | Yrd Mat Mat Mat Used RIF Installer . | . . . . Robots Hacked . | . . . . Non-combat . | . . . . Combat . | . . . . Robot Hacks Applied . | . . . . Relay Couplers Released . | . . . . Fabnet Peak Effective % . | . . . . Robots Rewired . | . . . . Allies Hacked . | . . . . Hacks Repelled . | . . . . Allies | -11 -10 -9 -8 -------- Run | Yrd Mat Mat Mat Total Allies . | . . . . Largest Group . | . . . . Highest-Rated Group . | . . . . Highest-Rated Ally . | . . . . Total Orders . | . . . . Ally Attacks . | . . . . Total Damage . | . . . . Kills . | . . . . Allies Corrupted . | . . . . Allies Melted . | . . . . Intel | -11 -10 -9 -8 ------- Run | Yrd Mat Mat Mat Robot Analysis Total . | . . . . Derelict Logs Recovered . | . . . . Drone Launches . | . . . . Drone Recoveries . | . . . . Exploration | -11 -10 -9 -8 ------------- Run | Yrd Mat Mat Mat Turns Passed 1377 | 59 549 648 121 Spaces Moved 1383 | 45 338 811 189 Core 5 | 5 . . . Treads . | . . . . Legs 460 | 40 338 82 . Wheels . | . . . . Hover . | . . . . Flight 918 | . . 729 189 Fastest Speed 34 | 50 120 34 34 Average Speed 65 | 112 124 44 38 Slowest Speed 400 | 120 400 280 107 Overloaded Moves . | . . . . Propulsion Burnouts . | . . . . Robots Hopped 1 | . . 1 . Cave-ins Triggered . | . . . . Exploration Rate (%) 29 | 5 47 54 13 Regions Visited 3 Branch Regions . Pre-discovered Areas . | . . . . Known Exits Taken . | . . . . Unknown Exits Taken 3 | 1 1 1 . Scrap Searched . | . . . . Spaces Dug 21 | . 13 8 . Terrain Destroyed 46 | . 35 11 . Melee . | . . . . Projectile 24 | . 13 11 . AOE 22 | . 22 . . Terrain Rammed . | . . . . Walls Destroyed . | . . . . Machines Disabled . | . . . . Actions | -11 -10 -9 -8 --------- Run | Yrd Mat Mat Mat Total 1673 | 51 402 1005 215 Wait 80 | . 17 54 9 Move 1378 | 44 337 808 189 Hop 1 | . . 1 . Pick Up 23 | 2 6 15 . Fast Attach 11 | 4 2 5 . Attach 9 | 1 1 4 3 Detach 2 | . . 2 . Swap 20 | . 6 14 . Drop 25 | . . 25 . Fire 124 | . 33 77 14 Melee . | . . . . Ram . | . . . . Kick . | . . . . Crush . | . . . . Escape Stasis . | . . . . Rewire . | . . . . Trap . | . . . . Miscellaneous . | . . . . Route ------- -11/Scrapyard -10/Materials (discovered 2 exits: *Mat / [*Min]) -9/Materials (discovered 2 exits: *Mat x2) -8/Materials (discovered 1 exit: *Sto) History --------- Turn | Location | Event 4 | -11/Scrapyard | Discovered new exit (range 16) 60 | -11/Scrapyard | Entered Materials 281 | -10/Materials | Discovered new exit (range 16) 300 | -10/Materials | Build established: Mutant 438 | -10/Materials | Discovered new exit (range 4) 609 | -10/Materials | Entered another Materials area 609 | -9/Materials | Evolved 2 slots: Propulsion x2 1021 | -9/Materials | Discovered new exit (range 8) 1134 | -9/Materials | Repaired Weight Redist. System 1252 | -9/Materials | Discovered new exit (range 11) 1257 | -9/Materials | Entered another Materials area 1257 | -8/Materials | Evolved 2 slots: Utility x2 1298 | -8/Materials | Identified exit to Storage 1378 | -8/Materials | Self-destructed Last Messages --------------- 1x Com. Wheel A-02 Transporter 4x Power Shielding >>Layout(Zone) Retrieving Zone 3S layout... Downloaded map data. ALERT: Suspicious activity at Terminal M005. Dispatching Investigation squad. O-16 Technician sends out distress signal. O-16 Technician: "IFF HANDSHAKE FAILED. SECURING TERMINAL." ALERT: Hostiles spotted, dispatching reinforcements to Terminal M004. ALERT: Hostiles spotted, dispatching reinforcements to Terminal M007. Hadron Collector disabled. G-47 Trooper suffers critical hit (Destroy). Destroyed Aluminum Leg. Critical hit (Burn: +37). Hpw. Shotgun destroyed. Map ----- +----------------------------------------------------+ | ????# ######### ##### ????????????????????? | | ????# #???????# + ????????????????????? | | ????# #??######+## ## ????????????????????? | | ????# #### ## ## ????????????????????? | | ????# + # # ????????????????????? | | ????# #### / ! + ????????????????????? | | ????# #??# # # ????????????????????? | | ????# #??# ## ####????????????????????? | | ????# #??# ## #???????????????????????? | | ??###+####+####### ####????????????????????? | | ??# # ????????????????????? | | ??# # #### ????????????????????? | | ??# ""# #??# ????????????????????? | | ??# T"# #??# ????????????????????? | | ??# ""# #??# ????????????????????? | | ??# # #??# ##+##+#????????????????????? | | ??#####+## #??# # ????????????????????? | | ???# #??# # ????????????????????? | | ####+## ####??# # "" ? ????????????????? | | # # #?????# # S"" ? ??????????????? | | #[ /# #?????# # "" ? ??????????????? | | # # #?????# # ? ??????????????? | | # # #######/######## ??????????????? | | # """ # # g YgYg #?# #??????????????? | | # """ + # """ g #?# #??????????????? | | # """ # # """ """@#?# > #??????????????? | | # # # """ """ #?# #??????????????? | | # """ # # """ """g#?# ???????????????? | | # """ # # g #?## #???????????????? | | # """ # # ! ! [ #??# #???????????????? | | # # # #??# #???????????????? | | ####### ####+######??# #???????????????? | | ??????# ## ####### #???????????????? | | ??????# #???????????????? | | ??????# ! #???????????????? | | ??????# #???????????????? | | ######## ### #######+###???????????????? | | # #?# #?## ##?????????????????????????? | | # T ### #### #??????????????????????????? | | # # ## #??????????????????????????? | | # # ## #??????????????????????????? | | # +! T ## ######?????????????????????? | | # ! # ## #?????????????????????? | | # # ## #?????????????????????? | | #[ !!######## #?????????????????????? | | # ! #??????###### #?????????????????????? | | #### #???????????# #?????????????????????? | | ???###???????????### #?????????????????????? | | ???????????????????? ????????????????????? | | ???????????????????? ###???????????????????? | +----------------------------------------------------+ Best States ------------- Heat Dissipation 31 Energy Generation 10 Energy Capacity 250 Matter Stores 300 Matter Capacity 300 Sight Range 16 Terrain Scan Density 10 Additional Mass Support 6 Armor Coverage 150 Evasion (%) 63 Targeting Accuracy 5 Offensive Hacking 10 Item Schematics ----------------- Weight Redist. System | -9/Materials | Scanalyzed Robot Schematics ------------------ None Fabricated ------------ Nothing Alien Tech Used ----------------- None Achievements -------------- None Challenges ------------ None Game ------ Seed CommFrostWarhead Manual? 0 Play Time 00:32:21 Cumulative 5.5 hours Start 2024.04.04 @ 21:19:19 End 2024.04.04 @ 21:53:41 Sessions 1 Manual Loads 0 Difficulty Rogue Special Mode None Game No. 10 Rogue 10 Adventurer 0 Explorer 0 Win Type - Total 0 Types 0/0/0/0/0/0/0/0/0 Lore% 8 Gallery% 9 Achievement% 11 Wizard Run 0 Options --------- Layout 1 ASCII 0 Keyboard 0 Movement Numpad Keybinds 0 Fullscreen 1 Font 32/SmallcapsGlow Map View 50x35 Zoom Use 0% Tactical HUD 0 Map Filters NONE Filters NONE Steam 1 RUN: e4b9bae3-28f4-4a64-abe2-339f7e7f57b1